[Event "HUN-chT 2017-18"]
[Site "Budapest"]
[Date "2018.05.06"]
[Round "9"]
[White "Balint, Vilmos"]
[Black "Biro, David"]
[Result "1/2-1/2"]
[ECO "A04"]
[WhiteElo "2237"]
[BlackElo "2244"]
[Annotator "ChessBase"]
[PlyCount "135"]
[EventDate "2018.??.??"]
[EventType "team-tourn"]
[EventCountry "HUN"]
[SourceTitle "playchess.com"]
[Source "ChessBase"]
[SourceQuality "1"]
[WhiteTeam "Hungary"]
[BlackTeam "Hungary"]
[WhiteTeamCountry "HUN"]
[BlackTeamCountry "HUN"]
[TimeControl "40/5400+30:1800+30"]

1. Nf3 {[%emt 0:00:23]} g6 {[%emt 0:00:47]} 2. g3 {[%emt 0:00:12]} Bg7 {[%emt 0:00:28]} 3. d4 {[%emt 0:00:11]} d6 {[%emt 0:00:41]} 4. Bg2 {[%emt 0:00:16]} Nc6 {[%emt 0:01:22]} 5. O-O {[%emt 0:10:02]} e5 {[%emt 0:01:11]} 6. dxe5 {[%emt 0:03:35]} dxe5 {[%emt 0:06:21]} 7. Qxd8+ {[%emt 0:01:29]} Nxd8 {[%emt 0:00:06]} 8. Nc3 {[%emt 0:01:37]} h6 {[%emt 0:11:43]} 9. Nd2 {[%emt 0:06:49]} Ne7 {[%emt 0:08:25]} 10. e4 {[%emt 0:04:27]} Ne6 {[%emt 0:07:29]} 11. Nb3 {[%emt 0:07:12]} c6 {[%emt 0:07:28]} 12. Be3 {[%emt 0:03:09]} h5 {[%emt 0:21:39]} 13. Rfd1 {[%emt 0:08:10]} Ng8 {[%emt 0:03:32]} 14. Na5 {[%emt 0:05:29]} Nf6 {[%emt 0:06:03]} 15. f3 {[%emt 0:04:30]} O-O {[%emt 0:08:50]} 16. Rd2 {[%emt 0:04:52]} Ne8 {[%emt 0:02:31]} 17. Rad1 {[%emt 0:04:26]} N8c7 {[%emt 0:03:45]} 18. Ne2 {[%emt 0:05:34]} Kh7 {[%emt 0:01:50]} 19. c3 {[%emt 0:02:04]} Bf6 {[%emt 0:02:05]} 20. h4 {[%emt 0:03:19]} Be7 {[%emt 0:00:42]} 21. Nc4 {[%emt 0:01:49]} f6 {[%emt 0:00:01]} 22. Kh2 {[%emt 0:07:28]} Ne8 {[%emt 0:01:05]} 23. Bh3 {[%emt 0:00:48]} Kg7 {[%emt 0:00:46]} 24. Na5 {[%emt 0:04:32]} Kf7 {[%emt 0:01:12]} 25. b4 {[%emt 0:00:37]} N8c7 {[%emt 0:00:52]} 26. f4 {[%emt 0:01:04]} exf4 {[%emt 0:00:10]} 27. gxf4 {[%emt 0:00:27]} f5 {[%emt 0:01:30]} 28. exf5 {[%emt 0:00:24]} gxf5 {[%emt 0:00:06]} 29. Bxf5 {[%emt 0:00:17]} Nd5 {[%emt 0:00:28]} 30. Bxe6+ {[%emt 0:04:41]} Bxe6 {[%emt 0:00:11]} 31. Bd4 {[%emt 0:00:11]} Bc8 {[%emt 0:02:06]} 32. Nc4 {[%emt 0:00:25]} Nf6 {[%emt 0:00:25]} 33. Bxf6 {[%emt 0:03:00]} Kxf6 {[%emt 0:00:09]} 34. Ng3 {[%emt 0:00:50]} Bg4 {[%emt 0:00:06]} 35. Re1 {[%emt 0:00:40]} Rad8 {[%emt 0:00:20]} 36. Ne4+ {[%emt 0:00:26]} Kg7 {[%emt 0:00:19]} 37. Kg3 {[%emt 0:00:52]} Rxd2 {[%emt 0:00:16]} 38. Nexd2 {[%emt 0:00:09]} Bf6 {[%emt 0:00:21]} 39. Ne5 {[%emt 0:00:41]} Bf5 {[%emt 0:01:11]} 40. Ndf3 {[%emt 0:00:00]} a5 {[%emt 0:01:27]} 41. Nd4 {[%emt 0:02:18]} Bc8 {[%emt 0:02:23]} 42. bxa5 {[%emt 0:02:32]} c5 {[%emt 0:04:37]} 43. Nb3 {[%emt 0:01:07]} c4 {[%emt 0:07:45]} 44. Nd4 {[%emt 0:00:30]} Kh7 {[%emt 0:00:46]} 45. Nef3 {[%emt 0:02:01]} Rd8 {[%emt 0:02:43]} 46. Ng5+ {[%emt 0:02:43]} Kg6 {[%emt 0:00:07]} 47. Ngf3 {[%emt 0:04:05]} Kh7 {[%emt 0:01:31]} 48. f5 {[%emt 0:01:53]} Rg8+ {[%emt 0:05:33]} 49. Kf2 {[%emt 0:05:29]} Rg4 {[%emt 0:00:59]} 50. Re8 {[%emt 0:06:07]} Bxd4+ {[%emt 0:00:09]} 51. Nxd4 {[%emt 0:01:04]} Bxf5 {[%emt 0:00:06]} 52. Re7+ {[%emt 0:01:01]} Kg6 {[%emt 0:00:13]} 53. Nf3 {[%emt 0:00:17]} Be4 54. Ne5+ {[%emt 0:02:34]} Kf6 {[%emt 0:05:04]} 55. Nxg4+ {[%emt 0:00:05]} Kxe7 {[%emt 0:00:09]} 56. Ne5 {[%emt 0:00:04]} Ke6 {[%emt 0:01:52]} 57. Nxc4 {[%emt 0:00:09]} Bd5 {[%emt 0:00:05]} 58. Nd2 {[%emt 0:00:38]} Kf5 {[%emt 0:03:07]} 59. c4 {[%emt 0:00:54]} Bc6 {[%emt 0:00:02]} 60. Ke3 {[%emt 0:04:42]} Kg4 {[%emt 0:00:09]} 61. Ne4 {[%emt 0:00:12]} Kxh4 {[%emt 0:00:14]} 62. Nf6 {[%emt 0:00:18]} Kg5 {[%emt 0:00:29]} 63. Nxh5 {[%emt 0:00:05]} Kxh5 {[%emt 0:00:01]} 64. Kd4 {[%emt 0:00:07]} Kg5 {[%emt 0:00:09]} 65. Kc5 {[%emt 0:00:08]} Bf3 {[%emt 0:00:16]} 66. Kb6 {[%emt 0:00:11]} Kf6 {[%emt 0:00:24]} 67. c5 {[%emt 0:00:45]} Ke7 {[%emt 0:01:50]} 68. a6 1/2-1/2

[Event "HUN-chT 2017-18"]
[Site "Budapest"]
[Date "2018.05.06"]
[Round "9"]
[White "Juhasz, Barbara"]
[Black "Krstulovic, Alex"]
[Result "0-1"]
[ECO "C77"]
[WhiteElo "2234"]
[BlackElo "2290"]
[Annotator "NA"]
[PlyCount "46"]
[EventDate "2018.??.??"]
[EventType "team-tourn"]
[EventCountry "HUN"]
[SourceTitle "playchess.com"]
[Source "ChessBase"]
[SourceQuality "1"]
[WhiteTeam "Hungary"]
[BlackTeam "Hungary"]
[WhiteTeamCountry "HUN"]
[BlackTeamCountry "HUN"]
[TimeControl "40/5400+30:1800+30"]

1. e4 {[%emt 0:00:07]} e5 {[%emt 0:00:37]} 2. Nf3 {[%emt 0:00:10]} Nc6 {[%emt 0:00:07]} 3. Bb5 {[%emt 0:00:14]} a6 {[%emt 0:00:07]} 4. Ba4 {[%emt 0:00:07]} Nf6 {[%emt 0:00:08]} 5. d4 {[%emt 0:00:14]} exd4 {[%emt 0:02:03]} 6. O-O {[%emt 0:00:10]} Be7 {[%emt 0:00:51]} 7. e5 {[%emt 0:00:16]} Ne4 {[%emt 0:00:17]} 8. Nxd4 {[%emt 0:00:25]} O-O {[%emt 0:00:15]} 9. Nf5 {[%emt 0:17:47]} d5 {[%emt 0:00:23]} 10. Nxe7+ {[%emt 0:00:08]} Nxe7 {[%emt 0:00:12]} 11. c3 {[%emt 0:00:28]} Nc5 {[%emt 0:04:45]} 12. Bc2 {[%emt 0:00:44]} Bf5 {[%emt 0:00:11]} 13. Na3 {[%emt 0:02:38]} Qd7 {[%emt 0:03:46]} 14. Re1 {[%emt 0:30:45]} Rfe8 {[%emt 0:13:02]} 15. Be3 {[%emt 0:12:22]} Ne6 $11 {[%emt 0:02:09]} 16. Qh5 {[%emt 0:07:11]} Bg6 {[%emt 0:01:38]} 17. Qh3 {[%emt 0:04:29]} c5 {[%emt 0:14:46]} 18. Rad1 {[%emt 0:00:19]} Bxc2 {[%emt 0:03:24]} 19. Nxc2 {[%emt 0:00:14]} Qa4 {[%emt 0:00:37]} 20. Rd2 {[%emt 0:04:00]} Rad8 {[%emt 0:16:49]} 21. Red1 {[%emt 0:05:33]} Nc6 {[%emt 0:05:23]} 22. b3 {[%emt 0:02:04]} Qa5 {[%emt 0:00:36]} 23. Bxc5 {[%emt 0:09:03]} Qxc5 {[%emt 0:00:32]} 0-1

[Event "HUN-chT 2017-18"]
[Site "Budapest"]
[Date "2018.05.06"]
[Round "9"]
[White "Karacsonyi, Gellert"]
[Black "Medvegy, Nora"]
[Result "1/2-1/2"]
[ECO "B48"]
[WhiteElo "2208"]
[BlackElo "2354"]
[Annotator "ChessBase"]
[PlyCount "20"]
[EventDate "2018.??.??"]
[EventType "team-tourn"]
[EventCountry "HUN"]
[SourceTitle "playchess.com"]
[Source "ChessBase"]
[SourceQuality "1"]
[WhiteTeam "Hungary"]
[BlackTeam "Hungary"]
[WhiteTeamCountry "HUN"]
[BlackTeamCountry "HUN"]
[TimeControl "40/5400+30:1800+30"]

1. e4 {[%emt 0:00:03]} c5 {[%emt 0:00:35]} 2. Nf3 {[%emt 0:00:07]} Nc6 {[%emt 0:00:08]} 3. d4 {[%emt 0:00:09]} cxd4 {[%emt 0:00:07]} 4. Nxd4 {[%emt 0:00:06]} Qc7 {[%emt 0:00:14]} 5. Nc3 {[%emt 0:00:25]} e6 {[%emt 0:01:07]} 6. Be3 {[%emt 0:00:08]} a6 {[%emt 0:00:53]} 7. a3 {[%emt 0:00:05]} Nf6 {[%emt 0:01:59]} 8. f4 {[%emt 0:00:08]} d6 {[%emt 0:02:34]} 9. Qf3 {[%emt 0:00:07]} Rb8 {[%emt 0:16:52]} 10. O-O-O {[%emt 0:12:52]} Bd7 {[%emt 0:22:33]} 1/2-1/2

[Event "HUN-chT 2017-18"]
[Site "Budapest"]
[Date "2018.05.06"]
[Round "9"]
[White "Dory, Jeno"]
[Black "Popovics, Adam"]
[Result "1/2-1/2"]
[ECO "B06"]
[WhiteElo "2197"]
[BlackElo "2382"]
[Annotator "NA"]
[PlyCount "40"]
[EventDate "2018.??.??"]
[EventType "team-tourn"]
[EventCountry "HUN"]
[SourceTitle "playchess.com"]
[Source "ChessBase"]
[SourceQuality "1"]
[WhiteTeam "Hungary"]
[BlackTeam "Hungary"]
[WhiteTeamCountry "HUN"]
[BlackTeamCountry "HUN"]
[TimeControl "40/5400+30:1800+30"]

1. e4 {[%emt 0:00:05]} g6 {[%emt 0:06:36]} 2. d4 {[%emt 0:00:32]} Bg7 {[%emt 0:00:06]} 3. Nf3 {[%emt 0:02:17]} d6 {[%emt 0:00:15]} 4. Bc4 {[%emt 0:03:18]} e6 {[%emt 0:00:49]} 5. O-O {[%emt 0:00:50]} a6 {[%emt 0:00:11]} 6. Bb3 {[%emt 0:01:40]} Ne7 {[%emt 0:00:40]} 7. Re1 {[%emt 0:03:31]} O-O {[%emt 0:05:31]} 8. Nbd2 {[%emt 0:01:08]} Nd7 {[%emt 0:04:38]} 9. c3 {[%emt 0:00:52]} b5 {[%emt 0:04:27]} 10. a4 {[%emt 0:03:01]} Bb7 {[%emt 0:00:08]} 11. Qe2 {[%emt 0:00:51]} c6 {[%emt 0:00:13]} 12. e5 dxe5 {[%emt 0:10:38]} 13. Nxe5 {[%emt 0:14:06]} Nxe5 {[%emt 0:04:46]} 14. dxe5 {[%emt 0:00:10]} Qc7 {[%emt 0:00:28]} 15. f4 {[%emt 0:13:48]} Rab8 {[%emt 0:16:17]} 16. Ne4 {[%emt 0:02:52]} c5 {[%emt 0:01:43]} 17. axb5 {[%emt 0:02:47]} axb5 {[%emt 0:00:30]} 18. Nd6 {[%emt 0:09:23]} c4 {[%emt 0:00:08]} 19. Nxb7 {[%emt 0:04:03]} Rxb7 {[%emt 0:01:51]} 20. Bc2 {[%emt 0:00:24]} Nd5 {[%emt 0:01:14]} 1/2-1/2

[Event "HUN-chT 2017-18"]
[Site "Budapest"]
[Date "2018.05.06"]
[Round "9"]
[White "Suranyi, Pal"]
[Black "Gara, Ticia"]
[Result "1/2-1/2"]
[ECO "A48"]
[WhiteElo "2117"]
[BlackElo "2369"]
[Annotator "NA"]
[PlyCount "82"]
[EventDate "2018.??.??"]
[EventType "team-tourn"]
[EventCountry "HUN"]
[SourceTitle "playchess.com"]
[Source "ChessBase"]
[SourceQuality "1"]
[WhiteTeam "Hungary"]
[BlackTeam "Hungary"]
[WhiteTeamCountry "HUN"]
[BlackTeamCountry "HUN"]
[TimeControl "40/5400+30:1800+30"]

1. d4 {[%emt 0:00:04]} Nf6 {[%emt 0:00:38]} 2. Nf3 {[%emt 0:00:07]} g6 {[%emt 0:00:40]} 3. c4 {[%emt 0:00:21]} Bg7 {[%emt 0:00:41]} 4. Nc3 {[%emt 0:01:44]} d5 {[%emt 0:00:39]} 5. cxd5 {[%emt 0:01:57]} Nxd5 {[%emt 0:00:09]} 6. Bd2 {[%emt 0:06:00]} O-O {[%emt 0:03:53]} 7. e3 {[%emt 0:13:20]} c5 {[%emt 0:03:48] LiveBook: 12 Games} 8. Rc1 {[%emt 0:04:32]} cxd4 {[%emt 0:04:52]} 9. Nxd4 $15 {[%emt 0:14:13]} Nb6 {[%emt 0:06:01]} 10. Be2 {[%emt 0:07:15]} Na6 {[%emt 0:06:52]} 11. Ncb5 {[%emt 0:04:51]} e5 {[%emt 0:06:11]} 12. Nb3 {[%emt 0:02:20]} Na4 {[%emt 0:04:28]} 13. e4 {[%emt 0:03:25]} Nxb2 {[%emt 0:08:30]} 14. Qc2 {[%emt 0:00:07]} Na4 {[%emt 0:00:20]} 15. Be3 {[%emt 0:09:05]} Be6 {[%emt 0:14:17]} 16. O-O {[%emt 0:00:40]} Rc8 {[%emt 0:13:35]} 17. Qb1 {[%emt 0:00:13]} Qh4 {[%emt 0:04:50]} 18. g3 {[%emt 0:07:09]} Qe7 {[%emt 0:02:06]} 19. Rxc8 {[%emt 0:04:06]} Rxc8 {[%emt 0:03:44]} 20. Nxa7 {[%emt 0:02:27]} Nc3 {[%emt 0:07:43]} 21. Nxc8 {[%emt 0:03:04]} Nxe2+ {[%emt 0:00:03]} 22. Kg2 {[%emt 0:00:25]} Qd7 {[%emt 0:01:17]} 23. Nb6 {[%emt 0:07:28]} Bh3+ {[%emt 0:00:57]} 24. Kh1 {[%emt 0:00:07]} Qe6 {[%emt 0:03:14]} 25. Rd1 {[%emt 0:04:39]} Qf6 {[%emt 0:00:14]} 26. Nd2 {[%emt 0:00:04]} Bg4 {[%emt 0:01:23]} 27. h3 {[%emt 0:01:46]} Bxh3 {[%emt 0:01:47]} 28. Qb5 {[%emt 0:00:17]} Nd4 {[%emt 0:00:52]} 29. Qe8+ {[%emt 0:00:24]} Bf8 {[%emt 0:00:02]} 30. Bh6 {[%emt 0:01:27]} Ne6 {[%emt 0:00:57]} 31. Nd5 {[%emt 0:00:32]} Qxf2 {[%emt 0:00:22]} 32. Rg1 {[%emt 0:01:02]} Bg4 {[%emt 0:00:47]} 33. Ne7+ {[%emt 0:00:40]} Kh8 {[%emt 0:00:03]} 34. Bxf8 {[%emt 0:00:34]} Bf3+ {[%emt 0:00:26]} 35. Nxf3 {[%emt 0:00:05]} Qxf3+ {[%emt 0:00:02]} 36. Rg2 {[%emt 0:00:47]} Qd1+ {[%emt 0:00:33]} 37. Kh2 {[%emt 0:00:11]} Qh5+ {[%emt 0:00:03]} 38. Kg1 {[%emt 0:00:09]} Qd1+ {[%emt 0:00:02]} 39. Kh2 {[%emt 0:00:08]} Qh5+ {[%emt 0:00:03]} 40. Kg1 {[%emt 0:00:00]} Qd1+ {[%emt 0:00:06]} 41. Kh2 {[%emt 0:00:33]} Qh5+ {[%emt 0:00:06]} 1/2-1/2

[Event "HUN-chT 2017-18"]
[Site "Budapest"]
[Date "2018.05.06"]
[Round "9"]
[White "Reskone dr, Timko Melinda"]
[Black "Kokeny, Norbert Adrian"]
[Result "1-0"]
[ECO "A30"]
[WhiteElo "2024"]
[BlackElo "2284"]
[Annotator "NA"]
[PlyCount "89"]
[EventDate "2018.??.??"]
[EventType "team-tourn"]
[EventCountry "HUN"]
[SourceTitle "playchess.com"]
[Source "ChessBase"]
[SourceQuality "1"]
[WhiteTeam "Hungary"]
[BlackTeam "Hungary"]
[WhiteTeamCountry "HUN"]
[BlackTeamCountry "HUN"]
[TimeControl "40/5400+30:1800+30"]

1. c4 {[%emt 0:00:07]} c5 {[%emt 0:00:35]} 2. Nf3 {[%emt 0:00:15]} Nc6 {[%emt 0:00:05]} 3. g3 {[%emt 0:00:14]} g6 {[%emt 0:00:04]} 4. Bg2 {[%emt 0:01:10]} Bg7 {[%emt 0:00:40]} 5. d3 {[%emt 0:02:09]} e5 {[%emt 0:01:46]} 6. O-O {[%emt 0:01:35]} Nge7 {[%emt 0:01:45]} 7. Nc3 {[%emt 0:01:42]} a6 {[%emt 0:03:27]} 8. a3 {[%emt 0:02:47]} Rb8 {[%emt 0:01:05]} 9. Qa4 {[%emt 0:05:49]} d6 {[%emt 0:01:58]} 10. Rb1 {[%emt 0:03:52]} Bd7 {[%emt 0:06:25]} 11. Qc2 {[%emt 0:11:48]} b5 {[%emt 0:01:08]} 12. Ne4 $15 {[%emt 0:10:18]} Qc7 {[%emt 0:04:07]} 13. cxb5 {[%emt 0:09:28]} axb5 {[%emt 0:00:33]} 14. Bg5 {[%emt 0:00:26]} Ng8 {[%emt 0:03:46]} 15. b4 {[%emt 0:03:57]} cxb4 {[%emt 0:03:36]} 16. axb4 {[%emt 0:07:34]} h6 {[%emt 0:01:57]} 17. Be3 {[%emt 0:01:44]} Nge7 {[%emt 0:01:43]} 18. Ra1 {[%emt 0:03:23]} Rc8 {[%emt 0:01:14]} 19. Rfc1 {[%emt 0:03:53]} Qb8 {[%emt 0:02:32]} 20. Qb1 {[%emt 0:15:41]} f5 {[%emt 0:09:48]} 21. Nc3 {[%emt 0:01:05]} Be6 {[%emt 0:00:47]} 22. Ra6 {[%emt 0:01:36]} Nd4 {[%emt 0:09:41]} 23. Bxd4 {[%emt 0:06:28]} exd4 {[%emt 0:00:23]} 24. Na2 {[%emt 0:01:28]} O-O {[%emt 0:02:08]} 25. Rc2 {[%emt 0:00:36]} Nd5 {[%emt 0:03:37]} 26. Rcc6 {[%emt 0:01:29]} Rxc6 {[%emt 0:03:18]} 27. Rxc6 {[%emt 0:00:04]} Rc8 {[%emt 0:01:58]} 28. Qc2 {[%emt 0:01:45]} Rxc6 {[%emt 0:10:53]} 29. Qxc6 {[%emt 0:00:06]} Ne7 {[%emt 0:00:09]} 30. Qa6 {[%emt 0:01:10]} Qc7 {[%emt 0:00:37]} 31. Ne1 {[%emt 0:00:44]} Kh7 {[%emt 0:01:09]} 32. Kf1 {[%emt 0:00:50]} Nc8 {[%emt 0:00:53]} 33. Qb7 {[%emt 0:00:35]} Qd8 {[%emt 0:21:53]} 34. Nc1 {[%emt 0:00:18]} Bd7 {[%emt 0:01:11]} 35. Nc2 {[%emt 0:00:31]} Nb6 {[%emt 0:00:33]} 36. Nb3 {[%emt 0:00:12]} Bc8 {[%emt 0:00:15]} 37. Qc6 {[%emt 0:00:15]} Bd7 {[%emt 0:00:42]} 38. Qxd6 {[%emt 0:00:11]} Qg8 {[%emt 0:00:21]} 39. Ncxd4 {[%emt 0:00:50]} Bxd4 {[%emt 0:00:19]} 40. Nxd4 {[%emt 0:00:00]} Qa2 {[%emt 0:00:14]} 41. Bf3 {[%emt 0:02:07]} Qa7 {[%emt 0:00:21]} 42. Qe7+ {[%emt 0:00:21]} Kh8 {[%emt 0:00:27]} 43. Qf8+ {[%emt 0:01:32]} Kh7 {[%emt 0:00:08]} 44. Qf7+ {[%emt 0:00:06]} Kh8 {[%emt 0:00:06]} 45. Kg2 {[%emt 0:00:41]} 1-0